fUSD/lending_fUSD_20250511
["ID","MTS","AMOUNT","RATE_DAILY","PERIOD"]
[360683550,1746925852783,-454.48,0.00019899,2]
[360683551,1746925852793,-400.0,0.00019899,2]
[360683552,1746925852802,-562.96,0.00019899,2]
[360683553,1746925852811,-400.0,0.00019899,2]
[360683554,1746925852821,-400.0,0.00019899,2]
[360683555,1746925852830,-2000.0,0.000199,2]
[360683556,1746925852840,-2000.0,0.000199,2]
[360683557,1746925852849,-246.80292193,0.000199,2]
[360683558,1746925852859,-2000.0,0.000199,2]
[360683559,1746925852868,-2000.0,0.000199,2]
[360683560,1746925852878,-2000.0,0.000199,2]
[360683561,1746925852887,-2000.0,0.000199,2]
[360683562,1746925852898,-2000.0,0.000199,2]
[360683563,1746925852908,-2000.0,0.000199,2]
[360683564,1746925852918,-2000.0,0.000199,2]
[360683565,1746925852928,-2025.8017,0.000199,2]
[360683566,1746925852937,-689.38373976,0.000199,2]
[360683567,1746925852947,-159.28537312,0.000199,2]
[360683568,1746925852956,-400.0,0.00019918,2]
[360683569,1746925852966,-400.0,0.00019918,2]
[360683570,1746925852975,-400.0,0.00019918,2]
[360683571,1746925852985,-254.70535015,0.00019918,2]
[360683572,1746925852995,-400.0,0.00019918,2]
[360683573,1746925853004,-400.0,0.00019918,2]
[360683574,1746925853013,-400.0,0.00019918,2]
[360683575,1746925853023,-400.0,0.00019918,2]
[360683576,1746925853032,-400.0,0.00019918,2]
[360683577,1746925853042,-383.34,0.00019918,2]
[360683578,1746925853051,-400.0,0.00019918,2]
[360683579,1746925853060,-611.49,0.00019918,2]
[360683580,1746925853070,-400.0,0.00019918,2]
[360683581,1746925853080,-393.23,0.00019918,2]
[360683582,1746925853090,-420.0,0.00019947,2]
[360683583,1746925853099,-455.81,0.00019949,2]
[360683584,1746925853108,-400.0,0.00019949,2]
[360683585,1746925853118,-400.0,0.00019949,2]
[360683586,1746925853127,-569.86,0.00019949,2]
[360683587,1746925853138,-400.0,0.00019949,2]
[360683588,1746925853148,-673.61,0.00019949,2]
[360683589,1746925853158,-454.48,0.00019949,2]
[360683590,1746925853167,-562.96,0.00019949,2]
[360683591,1746925853177,-400.0,0.00019949,2]
[360683592,1746925853186,-400.0,0.00019949,2]
[360683593,1746925853196,-420.0,0.00019949,2]
[360683594,1746925853206,-250.0,0.00019962,2]
[360683595,1746925853216,-1000.0,0.00019969,2]
[360683596,1746925853228,-500.0,0.00019973,2]
[360683597,1746925853238,-546.50142305,0.00019973,2]
[360683598,1746925853248,-500.0,0.00019973,2]
[360683599,1746925853257,-500.0,0.00019973,2]
[360683600,1746925853268,-500.0,0.00019973,2]
[360683601,1746925853277,-500.0,0.00019973,2]
[360683602,1746925853287,-250.0,0.00019973,2]
[360683603,1746925853297,-500.0,0.00019973,2]
[360683604,1746925853307,-500.0,0.00019973,2]
[360683605,1746925853316,-500.0,0.00019973,2]
[360683606,1746925853326,-500.0,0.00019973,2]
[360683607,1746925853336,-500.0,0.00019973,2]
[360683608,1746925853347,-500.0,0.00019973,2]
[360683609,1746925853360,-500.0,0.00019973,2]
[360683610,1746925853370,-500.0,0.00019973,2]
[360683611,1746925853380,-500.0,0.00019973,2]
[360683612,1746925853390,-500.0,0.00019973,2]
[360683613,1746925853403,-500.0,0.00019973,2]
[360683614,1746925853412,-500.0,0.00019973,2]
[360683615,1746925853422,-500.0,0.00019973,2]
[360683616,1746925853433,-500.0,0.00019973,2]
[360683617,1746925853442,-500.0,0.00019973,2]
[360683618,1746925853451,-500.0,0.00019973,2]
[360683619,1746925853461,-500.0,0.00019973,2]
[360683620,1746925853470,-500.0,0.00019973,2]
[360683621,1746925853481,-500.0,0.00019973,2]
[360683622,1746925853490,-500.0,0.00019973,2]
[360683623,1746925853499,-500.0,0.00019973,2]
[360683624,1746925853509,-500.0,0.00019973,2]
[360683625,1746925853519,-500.0,0.00019973,2]
[360683626,1746925853529,-500.0,0.00019973,2]
[360683627,1746925853539,-500.0,0.00019973,2]
[360683628,1746925853548,-500.0,0.00019973,2]
[360683629,1746925853557,-500.0,0.00019973,2]
[360683630,1746925853567,-500.0,0.00019973,2]
[360683631,1746925853576,-500.0,0.00019973,2]
[360683632,1746925853630,-500.0,0.00019973,2]
[360683633,1746925853639,-500.0,0.00019973,2]
[360683634,1746925853649,-500.0,0.00019973,2]
[360683635,1746925853659,-500.0,0.00019973,2]
[360683636,1746925853668,-400.0,0.00019979,2]
[360683637,1746925853677,-400.0,0.0001998,2]
[360683638,1746925853687,-400.0,0.0001998,2]
[360683639,1746925853696,-400.0,0.0001998,2]
[360683640,1746925853705,-502.78,0.00019981,2]
[360683641,1746925853714,-400.0,0.00019981,2]
[360683642,1746925853723,-400.0,0.00019981,2]
[360683643,1746925853732,-487.85,0.00019981,2]
[360683644,1746925853741,-400.0,0.00019981,2]
[360683645,1746925853750,-400.0,0.00019981,2]
[360683646,1746925853760,-400.0,0.00019981,2]
[360683647,1746925853769,-620.53,0.00019981,2]
[360683648,1746925853778,-400.0,0.00019981,2]
[360683649,1746925853787,-437.7,0.00019981,2]
[360683650,1746925853797,-400.0,0.00019981,2]
[360683651,1746925853806,-400.0,0.00019981,2]
[360683652,1746925853816,-430.39,0.00019981,2]
[360683653,1746925853825,-400.0,0.00019981,2]
[360683654,1746925853835,-400.0,0.00019981,2]
[360683655,1746925853844,-475.41,0.00019981,2]
[360683656,1746925853855,-400.0,0.00019982,2]
[360683657,1746925853864,-400.0,0.00019982,2]
[360683658,1746925853875,-400.0,0.00019982,2]
[360683659,1746925853885,-319.61125719,0.00019982,2]
[360683660,1746925853894,-400.0,0.00019982,2]
[360683661,1746925853904,-400.0,0.00019982,2]
[360683662,1746925853913,-400.0,0.00019982,2]
[360683663,1746925853923,-400.0,0.00019982,2]
[360683664,1746925853933,-400.0,0.00019982,2]
[360683665,1746925853945,-611.49,0.00019982,2]
[360683666,1746925853955,-222.65926995,0.00019982,2]
[360683667,1746925853964,-221.24274199,0.00019983,2]
[360683668,1746925853975,-400.0,0.00019986,2]
[360683669,1746925853985,-400.0,0.00019986,2]
[360683670,1746925853994,-400.0,0.00019986,2]
[360683671,1746925854003,-400.0,0.00019986,2]
[360683672,1746925854012,-466.66,0.00019986,2]
[360683673,1746925854021,-400.0,0.00019986,2]
[360683674,1746925854031,-400.0,0.00019986,2]
[360683675,1746925854041,-25582.67,0.00019986,2]
[360683676,1746925854049,-400.0,0.00019986,2]
[360683677,1746925854058,-400.0,0.00019986,2]
[360683678,1746925854067,-559.52,0.00019986,2]
[360683679,1746925854077,-419.46,0.00019986,2]
[360683680,1746925854087,-536.41,0.00019986,2]
[360683681,1746925854096,-546.24,0.00019986,2]
[360683682,1746925854105,-1990.14,0.00019986,2]
[360683683,1746925854114,-965.05,0.00019986,2]
[360683684,1746925854123,-1112.41,0.00019986,2]
[360683685,1746925854133,-27050.28308568,0.00019987,2]
[360683686,1746925854142,-338.83178049,0.00019988,2]
[360683687,1746925854151,-400.0,0.00019988,2]
[360683688,1746925854161,-400.0,0.00019988,2]
[360683689,1746925854170,-400.0,0.00019988,2]
[360683690,1746925854180,-400.0,0.00019988,2]
[360683691,1746925854189,-400.0,0.00019988,2]
[360683692,1746925854198,-465.12,0.00019988,2]
[360683693,1746925854208,-400.0,0.00019988,2]
[360683694,1746925854217,-400.0,0.00019988,2]
[360683695,1746925854226,-461.57,0.00019988,2]
[360683696,1746925854237,-400.0,0.00019988,2]
[360683697,1746925854248,-400.0,0.00019988,2]
[360683698,1746925854258,-400.0,0.00019988,2]
[360683699,1746925854267,-450.0,0.00019988,2]
[360683700,1746925854277,-400.0,0.00019988,2]
[360683701,1746925854286,-591.38,0.00019988,2]
[360683702,1746925854296,-400.0,0.00019988,2]
[360683703,1746925854305,-825.5,0.00019988,2]
[360683704,1746925854314,-334.5,0.00019988,2]
[360683705,1746925854324,-630.45,0.00019988,2]
[360683706,1746925854333,-426.86,0.00019988,2]
[360683707,1746925854343,-400.0,0.00019988,2]
[360683708,1746925854355,-400.0,0.00019988,2]
[360683709,1746925854364,-585.0,0.00019988,2]
[360683710,1746925854374,-1177.69,0.00019988,2]
[360683711,1746925854383,-400.0,0.00019988,2]
[360683712,1746925854393,-480.44,0.00019988,2]
[360683713,1746925854403,-400.0,0.00019988,2]
[360683714,1746925854412,-400.0,0.00019988,2]
[360683715,1746925854422,-866.98,0.00019988,2]
[360683716,1746925854432,-228.18,0.00019988,2]
[360683717,1746925854441,-521.17,0.00019988,2]
[360683718,1746925854451,-400.0,0.00019988,2]
[360683719,1746925854460,-1522.39,0.00019988,2]
[360683720,1746925854470,-400.0,0.00019988,2]
[360683721,1746925854481,-473.93238894,0.00019988,2]
[360683722,1746925854490,-400.0,0.00019988,2]
[360683723,1746925854499,-571.44,0.00019988,2]
[360683724,1746925854509,-400.0,0.00019988,2]
[360683725,1746925854518,-400.0,0.00019988,2]
[360683726,1746925854528,-400.0,0.00019988,2]
[360683727,1746925854538,-400.0,0.00019988,2]
[360683728,1746925854547,-400.0,0.00019988,2]
[360683729,1746925854557,-400.0,0.00019988,2]
[360683730,1746925854566,-1262.4,0.00019988,2]
[360683731,1746925854575,-176.44,0.00019988,2]
[360683732,1746925854585,-400.0,0.00019988,2]
[360683733,1746925854593,-1021.87,0.00019988,2]
[360683734,1746925854603,-400.0,0.00019988,2]
[360683735,1746925854611,-400.0,0.00019988,2]
[360683736,1746925854621,-400.0,0.00019988,2]
[360683737,1746925854630,-465.38,0.00019988,2]
[360683738,1746925854640,-400.0,0.00019988,2]
[360683739,1746925854649,-400.0,0.00019988,2]
[360683740,1746925854659,-527.03,0.00019988,2]
[360683741,1746925854670,-496.31,0.00019988,2]
[360683742,1746925854679,-400.0,0.00019988,2]
[360683743,1746925854689,-400.0,0.00019988,2]
[360683744,1746925854698,-400.0,0.00019988,2]
[360683745,1746925854708,-400.0,0.00019988,2]
[360683746,1746925854717,-400.0,0.00019988,2]
[360683747,1746925854727,-556.28,0.00019988,2]
[360683748,1746925854737,-501.51,0.00019988,2]
[360683749,1746925854747,-400.0,0.00019988,2]
[360683750,1746925854756,-400.0,0.00019988,2]
[360683751,1746925854766,-400.0,0.00019988,2]
[360683752,1746925854775,-400.0,0.00019988,2]
[360683753,1746925854786,-513.68,0.00019988,2]
[360683754,1746925854795,-595.26,0.00019988,2]
[360683755,1746925854804,-524.59425624,0.00019989,2]
[360683756,1746925854814,-400.0,0.00019989,2]
[360683757,1746925854823,-400.0,0.00019989,2]
[360683758,1746925854832,-400.0,0.00019989,2]
[360683759,1746925854842,-400.0,0.00019989,2]
[360683760,1746925854851,-400.0,0.00019989,2]
[360683761,1746925854860,-400.0,0.00019989,2]
[360683762,1746925854869,-400.0,0.00019989,2]
[360683763,1746925854878,-400.0,0.00019989,2]
[360683764,1746925854888,-400.0,0.00019989,2]
[360683765,1746925854897,-400.0,0.00019989,2]
[360683766,1746925854906,-400.0,0.00019989,2]
[360683767,1746925854916,-400.0,0.00019989,2]
[360683768,1746925854925,-400.0,0.00019989,2]
[360683769,1746925854934,-400.0,0.00019989,2]
[360683770,1746925854944,-400.0,0.00019989,2]
[360683771,1746925854953,-400.0,0.00019989,2]
[360683772,1746925854962,-400.0,0.00019989,2]
[360683773,1746925854971,-400.0,0.00019989,2]
[360683774,1746925854982,-400.0,0.00019989,2]
[360683775,1746925854992,-400.0,0.00019989,2]
[360683776,1746925855002,-400.0,0.00019989,2]
[360683777,1746925855011,-400.0,0.00019989,2]
[360683778,1746925855022,-400.0,0.00019989,2]
[360683779,1746925855032,-431.82,0.00019989,2]
[360683780,1746925855043,-424.68,0.00019989,2]
[360683781,1746925855052,-372.36104854,0.00019989,2]
[360683782,1746925855060,-400.0,0.00019989,2]
[360683783,1746925855070,-430.17,0.00019989,2]
[360683784,1746925855080,-400.0,0.00019989,2]
[360683785,1746925855090,-400.0,0.00019989,2]
[360683786,1746925855100,-400.0,0.00019989,2]
[360683787,1746925855109,-400.0,0.00019989,2]
[360683788,1746925855118,-251.64,0.00019989,2]
[360683789,1746925855127,-400.0,0.00019989,2]
[360683790,1746925855136,-400.0,0.00019989,2]
[360683791,1746925855146,-400.0,0.00019989,2]
[360683792,1746925855155,-255.36,0.00019989,2]
[360683793,1746925855164,-400.0,0.00019989,2]
[360683794,1746925855174,-639.98,0.00019989,2]
[360683795,1746925855183,-400.0,0.00019989,2]
[360683796,1746925855194,-400.0,0.00019989,2]
[360683797,1746925855204,-400.0,0.00019989,2]
[360683798,1746925855213,-400.0,0.00019989,2]
[360683799,1746925855222,-400.0,0.00019989,2]
[360683800,1746925855232,-400.0,0.00019989,2]
[360683801,1746925855241,-93.33663043,0.00019989,2]
[360683802,1746925855473,-306.66336957,0.00019989,2]
[360683803,1746925855483,-400.0,0.00019989,2]
[360683804,1746925855494,-400.0,0.00019989,2]
[360683805,1746925855504,-1759.86,0.00019989,2]
[360683806,1746925855513,-400.0,0.00019989,2]
[360683807,1746925855524,-827.4,0.00019989,2]
[360683808,1746925855534,-400.0,0.00019989,2]
[360683809,1746925855545,-400.0,0.00019989,2]
[360683810,1746925855555,-400.0,0.00019989,2]
[360683811,1746925855565,-400.0,0.00019989,2]
[360683812,1746925855574,-400.0,0.00019989,2]
[360683813,1746925855586,-400.0,0.00019989,2]
[360683814,1746925855596,-298.76,0.00019989,2]
[360683815,1746925855606,-400.0,0.00019989,2]
[360683816,1746925855615,-400.0,0.00019989,2]
[360683817,1746925855626,-400.0,0.00019989,2]
[360683818,1746925855636,-400.0,0.00019989,2]
[360683819,1746925855646,-400.0,0.00019989,2]
[360683820,1746925855655,-400.0,0.00019989,2]
[360683821,1746925855665,-400.0,0.00019989,2]
[360683822,1746925855674,-400.0,0.00019989,2]
[360683823,1746925855683,-400.0,0.00019989,2]
[360683824,1746925855693,-400.0,0.00019989,2]
[360683825,1746925855703,-400.0,0.00019989,2]
[360683826,1746925855713,-528.33,0.00019989,2]
[360683827,1746925855722,-400.0,0.00019989,2]
[360683828,1746925855731,-30056.16875247,0.0001999,2]
[360683829,1746925855741,-400.0,0.00019992,2]
[360683830,1746925855750,-400.0,0.00019992,2]
[360683831,1746925855760,-400.0,0.00019992,2]
[360683832,1746925855769,-301.69913432,0.00019992,2]
[360683833,1746925855779,-400.0,0.00019992,2]
[360683834,1746925855789,-465.12,0.00019992,2]
[360683835,1746925855799,-400.0,0.00019992,2]
[360683836,1746925855809,-400.0,0.00019992,2]
[360683837,1746925855818,-461.57,0.00019992,2]
[360683838,1746925855828,-400.0,0.00019992,2]
[360683839,1746925855837,-400.0,0.00019992,2]
[360683840,1746925855846,-400.0,0.00019992,2]
[360683841,1746925855855,-400.0,0.00019992,2]
[360683842,1746925855865,-591.38,0.00019992,2]
[360683843,1746925855874,-400.0,0.00019992,2]
[360683844,1746925855884,-825.5,0.00019992,2]
[360683845,1746925855894,-630.45,0.00019992,2]
[360683846,1746925855905,-400.0,0.00019992,2]
[360683847,1746925855914,-400.0,0.00019992,2]
[360683848,1746925855924,-585.0,0.00019992,2]
[360683849,1746925855933,-1177.69,0.00019992,2]
[360683850,1746925855943,-400.0,0.00019992,2]
[360683851,1746925855953,-400.0,0.00019992,2]
[360683852,1746925855962,-480.44,0.00019992,2]
[360683853,1746925855971,-400.0,0.00019992,2]
[360683854,1746925855981,-400.0,0.00019992,2]
[360683855,1746925855991,-400.0,0.00019992,2]
[360683856,1746925856000,-521.17,0.00019992,2]
[360683857,1746925856010,-400.0,0.00019992,2]
[360683858,1746925856019,-400.0,0.00019992,2]
[360683859,1746925856028,-1522.39,0.00019992,2]
[360683860,1746925856038,-400.0,0.00019992,2]
[360683861,1746925856047,-400.0,0.00019992,2]
[360683862,1746925856056,-463.85273373,0.00019992,2]
[360683863,1746925856066,-400.0,0.00019992,2]
[360683864,1746925856075,-400.0,0.00019992,2]
[360683865,1746925856085,-400.0,0.00019992,2]
[360683866,1746925856094,-25582.67,0.00019992,2]
[360683867,1746925856104,-400.0,0.00019992,2]
[360683868,1746925856114,-400.0,0.00019992,2]
[360683869,1746925856123,-1262.4,0.00019992,2]
[360683870,1746925856132,-487.85,0.00019992,2]
[360683871,1746925856141,-400.0,0.00019992,2]
[360683872,1746925856151,-400.0,0.00019992,2]
[360683873,1746925856161,-359.88,0.00019992,2]
[360683874,1746925856170,-400.0,0.00019992,2]
[360683875,1746925856179,-400.0,0.00019992,2]
[360683876,1746925856189,-163.85340049,0.00019992,2]
[360683877,1746925856199,-400.0,0.00019992,2]
[360683878,1746925856209,-559.52,0.00019992,2]
[360683879,1746925856219,-400.0,0.00019992,2]
[360683880,1746925856229,-527.03,0.00019992,2]
[360683881,1746925856240,-419.46,0.00019992,2]
[360683882,1746925856250,-400.0,0.00019992,2]
[360683883,1746925856260,-400.0,0.00019992,2]
[360683884,1746925856270,-400.0,0.00019992,2]
[360683885,1746925856280,-620.53,0.00019992,2]
[360683886,1746925856291,-536.41,0.00019992,2]
[360683887,1746925856301,-400.0,0.00019992,2]
[360683888,1746925856311,-546.24,0.00019992,2]
[360683889,1746925856320,-437.7,0.00019992,2]
[360683890,1746925856330,-400.0,0.00019992,2]
[360683891,1746925856340,-1990.14,0.00019992,2]
[360683892,1746925856350,-400.0,0.00019992,2]
[360683893,1746925856363,-430.39,0.00019992,2]
[360683894,1746925856373,-965.05,0.00019992,2]
[360683895,1746925856383,-400.0,0.00019992,2]
[360683896,1746925856393,-400.0,0.00019992,2]
[360683897,1746925856404,-475.41,0.00019992,2]
[360683898,1746925856414,-400.0,0.00019992,2]
[360683899,1746925856424,-1112.41,0.00019992,2]
[360683900,1746925856435,-400.0,0.00019992,2]
[360683901,1746925856446,-400.0,0.00019992,2]
[360683902,1746925856456,-513.68,0.00019992,2]
[360683903,1746925856466,-500.0,0.00019993,2]
[360683904,1746925856475,-652.64111379,0.00019993,2]
[360683905,1746925856485,-400.0,0.00019993,2]
[360683906,1746925856495,-400.0,0.00019993,2]
[360683907,1746925856505,-400.0,0.00019993,2]
[360683908,1746925856518,-400.0,0.00019993,2]
[360683909,1746925856528,-400.0,0.00019993,2]
[360683910,1746925856538,-400.0,0.00019993,2]
[360683911,1746925856548,-400.0,0.00019993,2]
[360683912,1746925856558,-400.0,0.00019993,2]
[360683913,1746925856567,-400.0,0.00019993,2]
[360683914,1746925856577,-400.0,0.00019993,2]
[360683915,1746925856586,-528.89591858,0.00019993,2]
[360683916,1746925856596,-400.0,0.00019993,2]
[360683917,1746925856606,-569.86,0.00019993,2]
[360683918,1746925856615,-569.86,0.00019993,2]
[360683919,1746925856625,-569.86,0.00019993,2]
[360683920,1746925856635,-569.86,0.00019993,2]
[360683921,1746925856645,-569.86,0.00019993,2]
[360683922,1746925856655,-569.86,0.00019993,2]
[360683923,1746925856664,-329.04,0.00019993,2]
[360683924,1746925856674,-400.0,0.00019993,2]
[360683925,1746925856683,-400.0,0.00019993,2]
[360683926,1746925856693,-400.0,0.00019993,2]
[360683927,1746925856703,-400.0,0.00019993,2]
[360683928,1746925856712,-400.0,0.00019993,2]
[360683929,1746925856722,-400.0,0.00019993,2]
[360683930,1746925856731,-400.0,0.00019993,2]
[360683931,1746925856741,-673.61,0.00019993,2]
[360683932,1746925856750,-673.61,0.00019993,2]
[360683933,1746925856759,-673.61,0.00019993,2]
[360683934,1746925856769,-673.61,0.00019993,2]
[360683935,1746925856779,-673.61,0.00019993,2]
[360683936,1746925856788,-673.61,0.00019993,2]
[360683937,1746925856797,-400.0,0.00019993,2]
[360683938,1746925856807,-454.48,0.00019993,2]
[360683939,1746925856816,-454.48,0.00019993,2]
[360683940,1746925856826,-454.48,0.00019993,2]
[360683941,1746925856836,-454.48,0.00019993,2]
[360683942,1746925856845,-454.48,0.00019993,2]
[360683943,1746925856855,-454.48,0.00019993,2]
[360683944,1746925856864,-431.82,0.00019993,2]
[360683945,1746925856874,-562.96,0.00019993,2]
[360683946,1746925856883,-562.96,0.00019993,2]
[360683947,1746925856893,-562.96,0.00019993,2]
[360683948,1746925856903,-562.96,0.00019993,2]
[360683949,1746925856912,-562.96,0.00019993,2]
[360683950,1746925856921,-562.96,0.00019993,2]
[360683951,1746925856931,-400.0,0.00019993,2]
[360683952,1746925856941,-400.0,0.00019993,2]
[360683953,1746925856951,-400.0,0.00019993,2]
[360683954,1746925856961,-400.0,0.00019993,2]
[360683955,1746925856971,-400.0,0.00019993,2]
[360683956,1746925856980,-400.0,0.00019993,2]
[360683957,1746925856990,-424.68,0.00019993,2]
[360683958,1746925856999,-400.0,0.00019993,2]
[360683959,1746925857009,-400.0,0.00019993,2]
[360683960,1746925857019,-400.0,0.00019993,2]
[360683961,1746925857031,-400.0,0.00019993,2]
[360683962,1746925857041,-400.0,0.00019993,2]
[360683963,1746925857053,-400.0,0.00019993,2]
[360683964,1746925857063,-400.0,0.00019993,2]
[360683965,1746925857072,-430.17,0.00019993,2]
[360683966,1746925857082,-400.0,0.00019993,2]
[360683967,1746925857092,-400.0,0.00019993,2]
[360683968,1746925857102,-400.0,0.00019993,2]
[360683969,1746925857112,-400.0,0.00019993,2]
[360683970,1746925857124,-400.0,0.00019993,2]
[360683971,1746925857135,-400.0,0.00019993,2]
[360683972,1746925857146,-400.0,0.00019993,2]
[360683973,1746925857156,-639.98,0.00019993,2]
[360683974,1746925857166,-400.0,0.00019993,2]
[360683975,1746925857176,-400.0,0.00019993,2]
[360683976,1746925857187,-400.0,0.00019993,2]
[360683977,1746925857197,-400.0,0.00019993,2]
[360683978,1746925857207,-400.0,0.00019993,2]
[360683979,1746925857216,-400.0,0.00019993,2]
[360683980,1746925857227,-400.0,0.00019993,2]
[360683981,1746925857237,-400.0,0.00019993,2]
[360683982,1746925857247,-400.0,0.00019993,2]
[360683983,1746925857257,-1759.86,0.00019993,2]
[360683984,1746925857267,-343.02,0.00019993,2]
[360683985,1746925857277,-400.0,0.00019993,2]
[360683986,1746925857288,-827.4,0.00019993,2]
[360683987,1746925857298,-400.0,0.00019993,2]
[360683988,1746925857307,-400.0,0.00019993,2]
[360683989,1746925857318,-400.0,0.00019993,2]
[360683990,1746925857507,-571.44,0.00019993,2]
[360683991,1746925857518,-151.0,0.00019993,2]
[360683992,1746925857528,-151.0,0.00019993,2]
[360683993,1746925857538,-1000.0,0.00019993,2]
[360683994,1746925857548,-1000.0,0.00019993,2]
[360683995,1746925857558,-1000.0,0.00019993,2]
[360683996,1746925857568,-427.61610414,0.00019993,2]
[360683997,1746925857578,-400.0,0.00019993,2]
[360683998,1746925857588,-400.0,0.00019993,2]
[360683999,1746925857597,-400.0,0.00019993,2]
[360684000,1746925857607,-400.0,0.00019993,2]
[360684001,1746925857617,-400.0,0.00019993,2]
[360684002,1746925857626,-373.19,0.00019993,2]
[360684003,1746925857635,-1021.87,0.00019993,2]
[360684004,1746925857646,-400.0,0.00019993,2]
[360684005,1746925857656,-400.0,0.00019993,2]
[360684006,1746925857666,-400.0,0.00019993,2]
[360684007,1746925857676,-400.0,0.00019993,2]
[360684008,1746925857685,-465.38,0.00019993,2]
[360684009,1746925857695,-496.31,0.00019993,2]
[360684010,1746925857705,-400.0,0.00019993,2]
[360684011,1746925857715,-400.0,0.00019993,2]
[360684012,1746925857724,-400.0,0.00019993,2]
[360684013,1746925857735,-400.0,0.00019993,2]
[360684014,1746925857745,-400.0,0.00019993,2]
[360684015,1746925857754,-556.28,0.00019993,2]
[360684016,1746925857764,-400.0,0.00019993,2]
[360684017,1746925857773,-400.0,0.00019993,2]
[360684018,1746925857783,-400.0,0.00019993,2]
[360684019,1746925857792,-501.51,0.00019993,2]
[360684020,1746925857802,-528.33,0.00019993,2]
[360684021,1746925857812,-400.0,0.00019993,2]
[360684022,1746925857821,-400.0,0.00019993,2]
[360684023,1746925857830,-595.26,0.00019993,2]
[360684024,1746925857840,-676.49175626,0.00019994,2]
[360684025,1746925857849,-434.79,0.00019994,2]
[360684026,1746925857859,-473.91722642,0.00019994,2]
[360684027,1746925857868,-400.0,0.00019994,2]
[360684028,1746925857878,-400.0,0.00019994,2]
[360684029,1746925857887,-400.0,0.00019994,2]
[360684030,1746925857897,-400.0,0.00019994,2]
[360684031,1746925857907,-400.0,0.00019994,2]
[360684032,1746925857916,-400.0,0.00019994,2]
[360684033,1746925857926,-267.25770069,0.00019994,2]
[360684034,1746925857935,-163.54375331,0.00019994,2]
[360684035,1746925857944,-400.0,0.00019994,2]
[360684036,1746925857953,-400.0,0.00019994,2]
[360684037,1746925857962,-400.0,0.00019994,2]
[360684038,1746925857971,-400.0,0.00019994,2]
[360684039,1746925857981,-400.0,0.00019994,2]
[360684040,1746925857990,-400.0,0.00019994,2]
[360684041,1746925857999,-400.0,0.00019994,2]
[360684042,1746925858008,-509.92,0.00019994,2]
[360684043,1746925858018,-400.0,0.00019994,2]
[360684044,1746925858027,-400.0,0.00019994,2]
[360684045,1746925858036,-400.0,0.00019994,2]
[360684046,1746925858046,-400.0,0.00019994,2]
[360684047,1746925858055,-483.44,0.00019994,2]
[360684048,1746925858064,-611.49,0.00019994,2]
[360684049,1746925858074,-611.49,0.00019994,2]